bitfinex-derivatives/quotes_BTCF0:USTF0_20241120
["timestamp","ask_amount","ask_price","bid_price","bid_amount"]
[1732108964262,1.5,94189.0,94181.0,0.053044]
[1732108964460,1.5,94189.0,94178.0,0.3608]
[1732108964461,0.04486725,94182.0,94178.0,0.3608]
[1732108964666,0.04486725,94179.0,94178.0,0.3608]
[1732108965363,0.053036,94195.0,94186.0,0.05304]
[1732108965562,0.3608,94199.0,94179.0,0.053044]
[1732108965563,0.09790725,94187.0,94179.0,0.053044]
[1732108965859,0.04486725,94179.0,94178.0,0.3608]
[1732108966968,0.09791225,94179.0,94178.0,0.3608]
[1732108967162,0.053046,94177.0,94161.0,0.3608]
[1732108967362,0.09791325,94177.0,94161.0,0.3608]
[1732108967862,0.09791325,94177.0,94166.0,0.053052]
[1732108968063,0.053052,94166.0,94161.0,0.3608]
[1732108968266,0.04486725,94164.0,94161.0,0.3608]
[1732108968756,0.04486725,94164.0,94127.0,0.3608]
[1732108968757,0.03996725,94143.0,94127.0,0.3608]
[1732108968967,0.21392,94163.0,94114.0,0.3608]
[1732108968968,0.03996725,94132.0,94116.0,0.01918063]
[1732108969264,0.03996725,94129.0,94114.0,0.38342804]
[1732108969464,0.03996725,94128.0,94120.0,0.053078]
[1732108969654,0.03996725,94128.0,94114.0,0.38342804]
[1732108969857,0.03996725,94128.0,94114.0,0.02122804]
[1732108969858,0.053076,94124.0,94114.0,0.02122804]
[1732108970076,0.413876,94124.0,94114.0,0.02122804]
[1732108970461,0.413876,94124.0,94115.0,0.053081]
[1732108970655,0.3608,94126.0,94119.0,0.053078]
[1732108970856,0.3608,94126.0,94114.0,0.02122804]
[1732108970857,0.03996725,94125.0,94114.0,0.02122804]
[1732108971062,0.03996725,94125.0,94110.0,0.38039857]
[1732108971063,0.03996725,94125.0,94118.0,0.053079]
[1732108971358,0.3608,94126.0,94120.0,0.053078]
[1732108971559,0.03996725,94126.0,94125.0,0.3608]
[1732108971964,0.59670036,94144.0,94125.0,0.3608]
[1732108972172,0.03996725,94128.0,94127.0,0.053074]
[1732108972359,0.03996725,94128.0,94121.0,0.053077]
[1732108972765,0.03996725,94128.0,94117.0,0.3608]
[1732108972970,0.03996725,94128.0,94123.0,0.053076]
[1732108973272,0.03996725,94118.0,94117.0,0.3608]
[1732108973774,0.3608,94127.0,94126.0,0.053075]
[1732108974370,0.3608,94135.0,94117.0,0.3608]
[1732108974569,0.3608,94135.0,94132.0,0.053071]
[1732108974570,0.03996725,94133.0,94132.0,0.053071]
[1732108976767,0.3608,94150.0,94141.0,0.053066]
[1732108977276,0.3608,94150.0,94141.0,0.371746]
[1732108977662,0.3608,94150.0,94141.0,0.053066]
[1732108977863,0.3608,94150.0,94141.0,0.371746]
[1732108978066,0.3608,94159.0,94141.0,0.371746]
[1732108978373,0.3608,94159.0,94141.0,0.053066]
[1732108978673,0.23590036,94157.0,94141.0,0.053066]
[1732108978871,0.23590036,94157.0,94141.0,0.371746]
[1732108979070,0.23590036,94168.0,94141.0,0.67948]
[1732108979380,0.053073,94130.0,94128.0,0.0054]
[1732108979571,0.053076,94124.0,94115.0,0.00159365]
[1732108979875,0.03996725,94126.0,94115.0,0.00159365]
[1732108980061,0.3608,94124.0,94115.0,0.00159365]
[1732108980265,0.03996725,94116.0,94115.0,0.00159365]
[1732108980670,0.27586761,94116.0,94115.0,0.00159365]
[1732108981060,0.03996725,94116.0,94115.0,0.05467465]
[1732108981776,0.00013684,94125.0,94115.0,0.00159365]
[1732108982074,0.03996725,94123.0,94115.0,0.00159365]
[1732108982463,0.00013684,94125.0,94124.0,0.053076]
[1732108982871,0.053058,94156.0,94151.0,0.05306]
[1732108983079,0.03996725,94145.0,94144.0,0.053064]
[1732108983264,0.4746,94160.0,94135.0,0.3608]
[1732108983265,0.03996725,94144.0,94135.0,0.3608]
[1732108983464,0.03996725,94153.0,94143.0,0.3608]
[1732108983667,0.3608,94174.0,94143.0,0.3608]
[1732108983668,0.03996725,94154.0,94153.0,0.053059]
[1732108983871,0.04008196,94154.0,94153.0,0.053059]
[1732108984076,0.00011471,94154.0,94153.0,0.05451754]
[1732108985167,0.04008196,94154.0,94153.0,0.05451754]
[1732108985662,0.00011471,94154.0,94153.0,0.05451754]
[1732108986061,0.00011471,94154.0,94153.0,0.37315754]
[1732108986471,0.0562,94177.0,94176.0,0.053046]
[1732108986673,0.0562,94177.0,94164.0,0.053053]
[1732108986674,0.03996725,94174.0,94173.0,0.053048]
[1732108986873,0.23590036,94188.0,94173.0,0.053048]
[1732108986874,0.03996725,94176.0,94173.0,0.053048]
[1732108987178,0.0586,94196.0,94174.0,0.00145854]
[1732108987179,0.03996725,94183.0,94174.0,0.00145854]
[1732108987373,0.03996725,94186.0,94181.0,0.3608]
[1732108987571,0.03996725,94186.0,94185.0,0.053041]
[1732108987879,0.04005917,94186.0,94185.0,0.053041]
[1732108988092,9.192e-05,94186.0,94185.0,0.053041]
[1732108988270,9.192e-05,94186.0,94185.0,0.41529954]
[1732108988467,0.00159349,94193.0,94192.0,0.053037]
[1732108988671,0.3608,94210.0,94199.0,0.053033]
[1732108988977,0.053022,94220.0,94199.0,0.413833]
[1732108989279,0.23590036,94221.0,94199.0,0.41529154]
[1732108989280,0.3608,94217.0,94199.0,0.41529154]
[1732108989665,0.0049,94225.0,94199.0,0.41529154]
[1732108989869,0.053023,94217.0,94199.0,0.41529154]
[1732108990065,0.23590036,94221.0,94199.0,0.41529154]
[1732108990269,0.23590036,94221.0,94199.0,0.41674938]
[1732108990477,0.3608,94223.0,94199.0,0.73522938]
[1732108991371,0.053022,94220.0,94199.0,0.73522938]
[1732108991576,0.07843089,94200.0,94199.0,0.73522938]
[1732108991784,0.0049,94225.0,94215.0,0.053024]
[1732108991983,0.0586,94226.0,94217.0,0.3608]
[1732108992171,0.03996725,94211.0,94208.0,0.3608]
[1732108992371,0.03996725,94211.0,94209.0,0.00291638]
[1732108992669,0.03996725,94211.0,94209.0,0.05594338]
[1732108992977,0.053021,94222.0,94214.0,0.053025]
[1732108993183,0.03996725,94216.0,94214.0,0.053025]
[1732108993480,0.03996725,94216.0,94215.0,0.00291638]
[1732108995478,0.03996725,94216.0,94215.0,0.05594038]
[1732108995668,0.03996725,94216.0,94215.0,0.00291638]
[1732108997170,0.03996725,94205.0,94199.0,0.3657]
[1732108997379,0.23590036,94220.0,94200.0,0.01904302]
[1732108997380,0.03996725,94204.0,94200.0,0.01904302]
[1732108997679,0.0049,94228.0,94204.0,0.053031]
[1732108997888,0.0049,94279.0,94204.0,0.053031]
[1732108997889,0.052991,94275.0,94261.0,0.052998]
[1732108998181,0.117,94278.0,94255.0,0.0049]
[1732108998371,0.35290036,94278.0,94255.0,0.0049]
[1732108998575,0.053001,94257.0,94246.0,0.00010555]
[1732108998777,0.3608,94277.0,94256.0,0.3608]
[1732108998976,0.053,94259.0,94256.0,0.3608]
[1732108999177,0.37128,94258.0,94246.0,0.00010555]
[1732108999486,0.37128,94258.0,94245.0,0.3608]
[1732108999487,0.23590036,94250.0,94245.0,0.3608]
[1732108999782,0.053011,94240.0,94235.0,0.3608]
[1732109000177,0.053011,94240.0,94236.0,0.053013]
[1732109000378,0.053012,94238.0,94235.0,0.3608]
[1732109000578,0.053013,94237.0,94235.0,0.3608]
[1732109000885,0.00010555,94239.0,94226.0,0.3608]
[1732109000886,0.053015,94233.0,94227.0,0.3608]
[1732109001180,0.00010555,94239.0,94227.0,0.3608]
[1732109001181,0.053016,94231.0,94230.0,0.3608]
[1732109001386,0.00010555,94239.0,94230.0,0.3608]
[1732109001571,0.00010555,94239.0,94238.0,0.3608]
[1732109002375,0.05311655,94239.0,94238.0,0.3608]
[1732109003694,0.05311655,94239.0,94230.0,0.3608]
[1732109003695,0.053015,94231.0,94230.0,0.3608]
[1732109004072,0.671375,94231.0,94230.0,0.3608]
[1732109004282,0.671375,94231.0,94216.0,0.3608]
[1732109004283,0.97916,94231.0,94216.0,0.3608]
[1732109004483,0.053016,94230.0,94216.0,0.3608]
[1732109004691,0.053021,94221.0,94219.0,0.053022]
[1732109004977,0.053018,94227.0,94224.0,0.053019]
[1732109005177,0.053018,94227.0,94216.0,0.3608]
[1732109005178,0.3608,94231.0,94216.0,0.3608]
[1732109005384,0.053013,94235.0,94234.0,0.053014]
[1732109006189,0.21296,94238.0,94229.0,0.3608]
[1732109006487,0.053016,94230.0,94229.0,0.3608]
[1732109007391,0.053016,94230.0,94229.0,0.413817]
[1732109007683,0.053016,94230.0,94229.0,0.3608]
[1732109007873,0.3608,94237.0,94216.0,0.3608]
[1732109008078,0.05302,94224.0,94222.0,0.05302]
[1732109008277,0.05302,94223.0,94222.0,0.05302]
[1732109008692,0.05302,94223.0,94215.0,0.00013637]
[1732109008693,0.3184,94222.0,94215.0,0.00013637]
[1732109008883,0.05156664,94216.0,94215.0,0.00013637]
[1732109009187,0.053019,94226.0,94221.0,0.053021]
[1732109009487,0.053018,94227.0,94225.0,0.413819]
[1732109009783,0.053018,94227.0,94226.0,0.053018]
[1732109010384,0.21296,94230.0,94222.0,0.05302]
[1732109010385,0.053017,94229.0,94222.0,0.05302]
[1732109010581,0.053019,94225.0,94222.0,0.05302]
[1732109010781,0.3608,94238.0,94219.0,0.3608]
[1732109010988,0.053013,94235.0,94234.0,0.053014]
[1732109011188,0.00010555,94239.0,94227.0,0.3608]
[1732109011489,0.00010555,94239.0,94236.0,0.053012]
[1732109011794,0.00010555,94239.0,94238.0,0.053012]
[1732109013388,0.053002,94255.0,94236.0,0.0644]
[1732109013591,0.3608,94263.0,94249.0,0.3608]
[1732109013889,0.053002,94256.0,94249.0,0.3608]
[1732109014081,0.3608,94263.0,94249.0,0.3608]
[1732109014082,0.053003,94253.0,94249.0,0.3608]
[1732109014280,0.21296,94268.0,94249.0,0.3608]
[1732109014494,0.053,94259.0,94257.0,0.3608]
[1732109014684,0.05459251,94258.0,94257.0,0.3608]
[1732109015993,0.15405432,94278.0,94257.0,0.3608]
[1732109016182,0.3608,94275.0,94258.0,0.053]
[1732109016894,0.052992,94274.0,94258.0,0.053]
[1732109017100,0.3608,94275.0,94259.0,0.053]
[1732109017392,0.053,94258.0,94257.0,0.3608]
[1732109017789,0.053,94258.0,94241.0,0.0049]
[1732109017791,0.053009,94242.0,94241.0,0.0049]
[1732109017987,0.053009,94242.0,94238.0,0.3608]
[1732109018189,0.15405432,94250.0,94239.0,0.02121147]
[1732109018393,0.15405432,94250.0,94243.0,0.053008]
[1732109018604,0.15405432,94250.0,94238.0,0.3608]
[1732109018894,0.15405432,94250.0,94248.0,0.3608]
[1732109018895,0.20705932,94250.0,94248.0,0.3608]
[1732109019796,0.20705932,94250.0,94238.0,0.413811]
[1732109019797,0.053005,94249.0,94238.0,0.413811]
[1732109019981,0.15405432,94250.0,94238.0,0.3608]
[1732109020295,0.15405432,94250.0,94228.0,0.4892]
[1732109020296,0.053015,94231.0,94228.0,0.0063]
[1732109020494,0.15405432,94239.0,94219.0,0.053022]
[1732109020791,0.3608,94245.0,94216.0,0.3608]
[1732109020792,0.15405432,94229.0,94216.0,0.3608]
[1732109021195,0.053017,94228.0,94216.0,0.3608]
[1732109021394,0.053023,94219.0,94216.0,0.3608]
[1732109021596,0.053023,94217.0,94216.0,0.3608]
[1732109022187,0.15405432,94229.0,94216.0,0.3608]
[1732109022398,0.053014,94233.0,94228.0,0.3608]
[1732109022589,0.15405432,94238.0,94228.0,0.3608]
[1732109022590,0.053017,94229.0,94228.0,0.3608]
[1732109023095,0.053014,94234.0,94228.0,0.3608]
[1732109023291,0.15405432,94238.0,94228.0,0.3608]
[1732109023491,0.053015,94232.0,94228.0,0.3608]
[1732109023998,0.053015,94232.0,94229.0,0.053017]
[1732109024199,0.05301,94241.0,94234.0,0.053014]
[1732109024397,0.05301,94241.0,94240.0,0.3608]
[1732109024989,0.15405432,94261.0,94240.0,0.67912]
[1732109025192,0.053004,94252.0,94248.0,0.413805]
[1732109026594,0.053004,94252.0,94248.0,0.3608]
[1732109026793,0.053005,94249.0,94248.0,0.3608]
[1732109026989,0.05301,94241.0,94240.0,0.36228]
[1732109027202,0.05301,94241.0,94240.0,0.3158]
[1732109027803,0.053007,94246.0,94242.0,0.053009]
[1732109028003,0.3608,94251.0,94242.0,0.053009]
[1732109028004,0.053008,94245.0,94242.0,0.053009]
[1732109028193,0.3608,94243.0,94231.0,0.02358623]
[1732109028406,0.3608,94243.0,94218.0,0.3608]
[1732109028407,0.053021,94221.0,94220.0,0.0049]
[1732109028596,0.413821,94221.0,94220.0,0.00145704]
[1732109028798,0.15405432,94229.0,94220.0,0.00145704]
[1732109029202,0.3608,94226.0,94220.0,0.00145704]
[1732109029408,0.053016,94230.0,94221.0,0.053021]
[1732109029604,0.053018,94227.0,94225.0,0.00145704]
[1732109029899,0.053018,94226.0,94225.0,0.00145704]
[1732109030405,0.413818,94226.0,94225.0,0.00145704]
[1732109031205,0.053018,94226.0,94225.0,0.00145704]
[1732109031407,0.413818,94226.0,94225.0,0.00145704]
[1732109031710,0.3608,94237.0,94233.0,0.053014]
[1732109031895,0.3608,94247.0,94221.0,0.26225704]
[1732109032098,0.053009,94243.0,94221.0,0.26225704]
[1732109032299,0.053009,94243.0,94223.0,0.18743441]
[1732109032706,0.053009,94243.0,94225.0,0.053019]
[1732109033003,0.3608,94242.0,94239.0,0.053011]
[1732109033207,0.15405432,94248.0,94225.0,0.0049]
[1732109033505,0.05301,94241.0,94236.0,0.053012]
[1732109033715,0.05301,94241.0,94226.0,0.19233441]
[1732109033905,0.15405432,94248.0,94226.0,0.18743441]
[1732109034099,0.053013,94235.0,94223.0,0.18743441]
[1732109034310,0.3608,94237.0,94229.0,0.053016]
[1732109034611,0.053015,94233.0,94230.0,0.053016]
[1732109034907,0.053015,94233.0,94231.0,0.053015]
[1732109035102,0.053013,94236.0,94232.0,0.05447228]
[1732109035700,0.053014,94233.0,94232.0,0.00145728]
[1732109036500,0.3608,94237.0,94232.0,0.00145728]
[1732109036703,0.053014,94233.0,94232.0,0.00145728]
[1732109038818,0.053022,94219.0,94216.0,0.00634]
[1732109039114,0.053022,94219.0,94191.0,0.56077088]
[1732109039115,0.053039,94190.0,94189.0,0.0054]
[1732109039300,0.05303,94206.0,94169.0,0.0212143]
[1732109039301,0.3608,94194.0,94174.0,0.54823441]
[1732109039500,0.3608,94194.0,94170.0,0.18743441]
[1732109039707,0.053044,94181.0,94169.0,0.20864871]
[1732109039910,0.3608,94181.0,94176.0,0.053046]
[1732109040115,0.3608,94181.0,94169.0,0.0212143]
[1732109040308,0.053047,94175.0,94170.0,0.05305]
[1732109040502,0.3608,94174.0,94172.0,0.00145811]
[1732109040902,0.3608,94184.0,94173.0,0.31856]
[1732109041139,0.252502,94219.0,94172.0,0.00145811]
[1732109041140,0.3608,94186.0,94179.0,0.3608]
[1732109041333,0.053034,94198.0,94180.0,0.0623]
[1732109041521,0.3608,94205.0,94189.0,0.00145811]
[1732109042022,0.3608,94205.0,94204.0,0.053031]
[1732109042220,0.3608,94215.0,94195.0,0.3608]
[1732109042430,0.3608,94215.0,94196.0,0.0604]
[1732109042627,0.3608,94215.0,94205.0,0.00145811]
[1732109042628,0.053028,94210.0,94205.0,0.00145811]
[1732109043229,0.3608,94215.0,94210.0,0.053027]
[1732109043428,0.3608,94223.0,94205.0,0.00145811]
[1732109043627,0.3608,94223.0,94204.0,0.3608]
[1732109043628,0.05311851,94218.0,94212.0,0.053026]
[1732109044025,9.551e-05,94218.0,94211.0,0.00145811]
[1732109044225,9.551e-05,94218.0,94215.0,0.053024]
[1732109044534,0.053026,94213.0,94211.0,0.00145811]
[1732109044721,0.053026,94213.0,94212.0,0.00145811]
[1732109045727,9.551e-05,94218.0,94217.0,0.053023]
[1732109046424,9.551e-05,94218.0,94217.0,0.371423]
[1732109046735,0.053012,94237.0,94217.0,0.371423]
[1732109046923,0.053009,94243.0,94233.0,0.053014]
[1732109047126,0.05301,94241.0,94233.0,0.053014]
[1732109047436,0.36136001,94246.0,94233.0,0.053014]
[1732109047624,0.053009,94243.0,94233.0,0.053014]
[1732109047821,0.36084086,94234.0,94233.0,0.05447211]
[1732109048533,4.086e-05,94234.0,94233.0,0.05447211]
[1732109050321,4.086e-05,94234.0,94233.0,0.0545587]
[1732109051336,0.26258,94269.0,94233.0,0.0545587]
[1732109051337,0.053,94259.0,94236.0,0.053012]
[1732109051540,0.053,94259.0,94242.0,0.3608]
[1732109051723,0.3608,94262.0,94242.0,0.3608]
[1732109051929,0.00159219,94263.0,94252.0,0.00145811]
[1732109052631,0.00159219,94263.0,94258.0,0.053]
[1732109052832,0.3608,94262.0,94258.0,0.053]
[1732109053045,0.00159219,94263.0,94260.0,0.05445711]
[1732109053229,0.00159219,94263.0,94261.0,0.052999]
[1732109054134,0.00159219,94263.0,94262.0,0.00145811]
[1732109056948,0.052995,94267.0,94262.0,0.00145811]
[1732109057249,0.3608,94263.0,94252.0,0.06]
[1732109057545,0.3608,94263.0,94247.0,0.56132]
[1732109057546,0.053004,94252.0,94247.0,0.00104]
[1732109057846,0.15405432,94254.0,94238.0,0.053011]
[1732109058036,0.053002,94256.0,94244.0,0.053008]
[1732109058234,0.053002,94256.0,94247.0,0.3608]
[1732109058648,0.51541433,94263.0,94247.0,0.3608]
[1732109059039,0.3608,94251.0,94238.0,0.0049]
[1732109059245,0.053007,94246.0,94237.0,0.0613]
[1732109059547,0.15405432,94252.0,94236.0,0.3608]
[1732109059548,0.3608,94247.0,94236.0,0.3608]
[1732109059855,0.15405432,94252.0,94233.0,8.659e-05]
[1732109059856,0.053014,94234.0,94233.0,8.659e-05]
[1732109061246,0.053014,94234.0,94233.0,0.01911409]
[1732109061838,0.413814,94234.0,94233.0,8.659e-05]
[1732109062351,0.053023,94217.0,94216.0,0.0049]
[1732109062545,0.053027,94210.0,94209.0,0.02120756]
[1732109063045,0.413827,94210.0,94209.0,0.02120756]
[1732109064151,1.50056001,94224.0,94209.0,0.02120756]
[1732109064352,0.0057,94253.0,94209.0,0.02120756]
[1732109064353,0.413791,94275.0,94223.0,0.51485432]
[1732109064650,0.15405432,94281.0,94244.0,0.053008]
[1732109064947,0.052996,94266.0,94251.0,0.053004]
[1732109065141,0.052997,94264.0,94252.0,0.053004]
[1732109065347,0.052994,94269.0,94258.0,0.3608]
[1732109066339,0.3608,94271.0,94258.0,0.3608]
[1732109066650,0.052995,94268.0,94258.0,0.3608]
[1732109068952,0.052996,94266.0,94258.0,0.3608]
[1732109069252,0.3608,94271.0,94258.0,0.3608]
[1732109069253,0.052996,94267.0,94258.0,0.3608]
[1732109069738,0.052996,94266.0,94258.0,0.3608]
[1732109069941,0.052996,94266.0,94258.0,0.4138]
[1732109070536,0.052997,94265.0,94258.0,0.4138]
[1732109070940,0.052994,94270.0,94263.0,0.052997]
[1732109071141,0.052994,94270.0,94258.0,0.3608]
[1732109071142,0.052993,94272.0,94264.0,0.052996]
[1732109071439,0.052993,94272.0,94265.0,0.052996]
[1732109071751,0.00056001,94279.0,94278.0,0.052989]
[1732109071936,0.0633,94282.0,94279.0,0.052988]
[1732109072136,0.0633,94282.0,94266.0,0.3158]
[1732109072352,0.41846001,94286.0,94284.0,0.052985]
[1732109072541,0.4179,94286.0,94285.0,0.052985]
[1732109072737,0.4179,94286.0,94279.0,0.3608]
[1732109072941,0.470885,94286.0,94279.0,0.3608]
[1732109073442,0.470885,94286.0,94284.0,0.052986]
[1732109073836,0.470885,94286.0,94279.0,0.3608]
[1732109073837,0.4179,94286.0,94279.0,0.3608]
[1732109074044,0.4179,94286.0,94285.0,0.052985]
[1732109076141,0.4179,94286.0,94279.0,0.3608]
[1732109076458,0.4179,94286.0,94280.0,0.052988]
[1732109076459,0.470885,94286.0,94280.0,0.052988]
[1732109076657,0.470885,94286.0,94281.0,0.052987]
[1732109076852,0.052986,94284.0,94281.0,0.052987]
[1732109077052,0.052986,94284.0,94282.0,0.052987]
[1732109078053,0.41854,94286.0,94279.0,0.3608]
[1732109078254,1.5,94285.0,94284.0,0.052986]
[1732109079144,0.41846001,94286.0,94284.0,0.20704032]
[1732109079349,0.4179,94286.0,94285.0,0.052985]
[1732109080163,0.4179,94286.0,94281.0,0.02119992]
[1732109080455,0.052986,94284.0,94281.0,0.07418692]
[1732109080849,0.052987,94283.0,94281.0,0.07418692]
[1732109081042,1.5,94282.0,94281.0,0.07418692]
[1732109081247,0.41846001,94286.0,94281.0,0.07418692]
[1732109081445,0.4179,94286.0,94283.0,0.052986]
[1732109081655,0.470885,94286.0,94283.0,0.052986]
[1732109081861,0.470885,94286.0,94281.0,0.07418692]
[1732109082054,0.052987,94283.0,94281.0,0.07418692]
[1732109082453,0.052987,94282.0,94281.0,0.02119992]
[1732109083348,0.3608,94285.0,94278.0,0.01924083]
[1732109083545,0.052986,94284.0,94273.0,0.052992]
[1732109083951,0.052986,94284.0,94271.0,0.51581432]
[1732109083952,0.052989,94279.0,94276.0,0.05299]
[1732109084152,0.052989,94279.0,94271.0,0.51581432]
[1732109084153,0.052987,94283.0,94280.0,0.052988]
[1732109084359,0.052987,94283.0,94272.0,0.052992]
[1732109084556,0.4179,94286.0,94279.0,0.3608]
[1732109084557,0.41846001,94286.0,94279.0,0.3608]
[1732109084859,0.4179,94286.0,94279.0,0.3608]
[1732109085559,0.052988,94281.0,94277.0,0.05299]
[1732109085865,0.05299,94277.0,94272.0,0.052992]
[1732109086061,0.41846001,94286.0,94271.0,0.38102502]
[1732109086062,0.052992,94272.0,94271.0,0.38102502]
[1732109086249,0.052992,94272.0,94271.0,0.38006502]
[1732109086661,0.052992,94272.0,94271.0,0.01926502]
[1732109086862,0.052992,94272.0,94265.0,0.02119992]
[1732109086863,0.052996,94266.0,94265.0,0.02119992]
[1732109087052,0.052985,94285.0,94263.0,0.052997]
[1732109087053,0.05308953,94265.0,94263.0,0.052997]
[1732109087261,0.05308953,94265.0,94264.0,0.01909964]
[1732109088367,0.05308953,94265.0,94264.0,0.02120221]
[1732109091366,0.05308953,94265.0,94258.0,0.00096]
[1732109091367,0.053,94259.0,94258.0,0.00096]
[1732109091658,0.053,94259.0,94249.0,0.00096]
[1732109091659,0.053002,94255.0,94249.0,0.00096]
[1732109091859,0.053,94259.0,94238.0,0.01935524]
[1732109091860,0.053011,94239.0,94238.0,0.01935524]
[1732109092060,0.15405432,94239.0,94223.0,0.0049]
[1732109092272,0.053022,94219.0,94218.0,0.0049]
[1732109092465,0.053023,94217.0,94209.0,0.01898787]
[1732109092666,0.053027,94210.0,94205.0,0.05303]
[1732109092870,0.05303,94206.0,94205.0,0.05303]
[1732109093666,0.053029,94207.0,94203.0,0.38109682]
[1732109093872,0.05303,94206.0,94203.0,0.38041682]
[1732109094178,0.05303,94205.0,94203.0,0.38041682]
[1732109094369,0.05303,94205.0,94203.0,0.01961682]
[1732109094666,0.00013739,94216.0,94198.0,0.0049]
[1732109094667,0.053034,94199.0,94198.0,0.0049]
[1732109094869,0.053027,94211.0,94193.0,0.00013582]
[1732109094870,0.053036,94194.0,94193.0,0.00013582]
[1732109095059,0.20709032,94194.0,94193.0,0.00013582]
[1732109095258,0.053036,94194.0,94193.0,0.00013582]
[1732109095463,0.18716,94204.0,94193.0,0.00013582]
[1732109095664,0.053033,94201.0,94197.0,0.053034]
[1732109095863,0.053034,94199.0,94194.0,0.3608]
[1732109096171,0.053035,94197.0,94194.0,0.3608]
[1732109096371,0.053031,94205.0,94194.0,0.413836]
[1732109096670,1.5,94212.0,94194.0,0.413836]
[1732109096671,0.053027,94211.0,94194.0,0.413836]
[1732109096877,0.053033,94200.0,94194.0,0.413836]
[1732109097171,1.50064,94212.0,94194.0,0.3608]
[1732109097172,0.053035,94197.0,94194.0,0.3608]
[1732109097389,0.053032,94203.0,94194.0,0.053036]
[1732109097574,0.3608,94205.0,94197.0,0.3608]
[1732109097575,0.053032,94202.0,94197.0,0.3608]
[1732109097876,0.053033,94201.0,94197.0,0.413834]
[1732109098263,0.3608,94205.0,94197.0,0.413834]
[1732109098264,0.3608,94205.0,94202.0,0.053032]
[1732109098464,0.3608,94205.0,94197.0,0.3608]
[1732109098779,0.053035,94198.0,94193.0,0.00013582]
[1732109098960,0.0614,94215.0,94193.0,0.00013582]
[1732109099167,0.053025,94215.0,94207.0,0.053029]
[1732109099368,0.3608,94218.0,94207.0,0.053029]
[1732109099574,0.3608,94218.0,94196.0,0.0049]
[1732109099575,0.053027,94210.0,94202.0,0.053032]
[1732109099876,0.053029,94208.0,94204.0,0.3608]
[1732109100270,0.3608,94218.0,94204.0,0.3608]
[1732109100779,0.053028,94210.0,94204.0,0.3608]
[1732109101167,0.3608,94218.0,94202.0,0.053032]
[1732109101367,0.053028,94209.0,94202.0,0.053032]
[1732109101567,0.053028,94209.0,94198.0,0.01930691]
[1732109101772,0.053028,94209.0,94204.0,0.053031]
[1732109101970,0.3608,94218.0,94215.0,0.053025]
[1732109102171,0.3608,94218.0,94207.0,0.3608]
[1732109102472,0.053028,94210.0,94207.0,0.3608]
[1732109102666,0.3608,94218.0,94207.0,0.3608]
[1732109102871,0.3608,94218.0,94214.0,0.053025]
[1732109103469,0.3608,94218.0,94215.0,0.053025]
[1732109103872,0.3608,94229.0,94215.0,0.413825]
[1732109104181,0.00159268,94239.0,94238.0,0.053012]
[1732109104382,0.00159268,94239.0,94238.0,0.413812]
[1732109104777,0.00159268,94239.0,94238.0,0.51485432]
[1732109105079,6.75e-05,94239.0,94229.0,0.15405432]
[1732109105281,0.053013,94237.0,94231.0,0.053015]
[1732109105473,0.053013,94237.0,94227.0,0.3608]
[1732109105474,6.75e-05,94239.0,94227.0,0.3608]
[1732109105677,0.053017,94228.0,94227.0,0.3608]
[1732109105881,6.75e-05,94239.0,94215.0,0.3608]
[1732109105882,0.3608675,94239.0,94215.0,0.3608]
[1732109106082,0.053017,94229.0,94215.0,0.3608]
[1732109106471,0.053012,94237.0,94215.0,0.3608]
[1732109106472,0.053023,94219.0,94215.0,0.3608]
[1732109106681,0.3608,94232.0,94215.0,0.3608]
[1732109106879,0.053013,94235.0,94215.0,0.413824]
[1732109107178,0.053021,94221.0,94216.0,0.053024]
[1732109107384,0.053021,94221.0,94215.0,0.3608]
[1732109108282,0.053021,94221.0,94219.0,0.053022]
[1732109109278,0.3608,94226.0,94215.0,0.3608]
[1732109109480,0.053024,94216.0,94215.0,0.3608]
[1732109109771,0.053024,94216.0,94205.0,0.01918757]
[1732109109971,0.053024,94216.0,94197.0,0.3657]
[1732109109972,0.053034,94198.0,94197.0,0.3657]
[1732109110181,0.053034,94198.0,94193.0,0.00503582]
[1732109110182,0.053036,94194.0,94193.0,0.00013582]
[1732109111776,0.0531035,94194.0,94193.0,0.00013582]
[1732109112398,0.0531035,94194.0,94184.0,0.0049]
[1732109112399,0.053041,94185.0,94184.0,0.0049]
[1732109112581,0.3715835,94194.0,94162.0,0.15405432]
[1732109112582,0.3608,94188.0,94176.0,0.0049]
[1732109112778,0.3608,94188.0,94173.0,0.053048]
[1732109112779,0.053041,94187.0,94173.0,0.053048]
[1732109112980,0.41384,94188.0,94168.0,0.0049]
[1732109112981,0.36136001,94188.0,94169.0,0.02121864]
[1732109113178,0.36136001,94188.0,94167.0,0.0049]
[1732109113179,0.053051,94168.0,94167.0,0.0049]
[1732109113383,0.0049,94200.0,94197.0,0.3608]
[1732109113584,0.00159286,94216.0,94193.0,0.15405432]
[1732109113779,0.00159286,94216.0,94190.0,0.01946855]
[1732109113980,0.37934,94215.0,94188.0,0.05304]
[1732109114179,0.053032,94202.0,94201.0,0.3608]
[1732109114386,0.05313272,94202.0,94201.0,0.3608]
[1732109114584,0.00010072,94202.0,94201.0,0.413832]
[1732109115684,0.00010072,94202.0,94201.0,0.3608]
[1732109115875,0.05313272,94202.0,94201.0,0.3608]
[1732109117377,0.053039,94190.0,94189.0,0.3608]
[1732109118983,1.553039,94190.0,94189.0,0.3608]
[1732109119684,1.871559,94190.0,94189.0,0.3608]
[1732109120090,1.871559,94190.0,94182.0,0.3608]
[1732109120091,0.053043,94183.0,94182.0,0.3608]
[1732109120587,0.053044,94181.0,94166.0,0.3608]
[1732109120787,0.053057,94158.0,94157.0,0.0049]
[1732109120977,0.053052,94166.0,94155.0,0.053058]
[1732109121178,0.15405432,94172.0,94150.0,0.3608]
[1732109121393,0.053061,94151.0,94150.0,0.413861]
[1732109121579,0.3608,94168.0,94150.0,0.3608]
[1732109121887,0.053055,94162.0,94161.0,0.053054]